{"text_format":"1","workbook":"xlsx","n_sheets":3,"sheets":["Elementi di fissaggio","Voce","Unità misura e prezzi"],"not_rendered":{"charts":0,"images":1,"macros":1,"external_links":0,"defined_names":7,"comments":0,"pivot_tables":0},"unopened":[],"bounds":{"document_bytes":16777216,"sheet_cells":100000,"rows_first":2000,"rows_last":500,"rows_between":2000,"halvings":0,"cell_chars":16384,"cell_head_chars":4096},"cells_cut":0,"cells_raw":0,"read":"whole","date_system":"1900"}

{"sheet":"Elementi di fissaggio","index":0,"n_rows":33,"n_cols":18,"rows_kept":33,"cut":false,"hidden":false,"merged":[[0,1,2,6],[31,0,31,6],[32,0,32,6],[29,3,29,5],[29,1,29,2],[16,0,16,2],[15,0,15,2],[17,0,17,2],[14,0,14,2],[7,0,12,6],[3,0,3,3],[3,6,6,6],[15,11,15,13],[16,11,16,13],[28,0,28,6],[21,0,21,2],[18,0,18,2],[17,11,17,13]]}
[null,"Applicazione di Elementi per fissaggio di carichi su sistemi termocoibenti"]
[]
[]
[]
["Tipologia","Misura"]
["Elemento per Fissaggio Leggero","50 mm"]
[]
[{"$f":"_xlfn.CONCAT(Voce!B3,VLOOKUP('Elementi di fissaggio'!A6,VOC,3,FALSE),VLOOKUP('Elementi di fissaggio'!A6,VOC,4,FALSE),Voce!E3)","v":"Fornitura e posa in opera di elemento in polipropilene per fissaggio di carichi leggeri al cappotto senza formazione di ponte termico - tipo Elemento di Fissaggio Leggero di Kerakoll. \nIl prezzo è per singolo elemento posto in opera. E' altresì compresa la fornitura e posa in opera di tutti i materiali sopra descritti e quanto altro occorre per dare il lavoro finito. Sono esclusi: eventuali materiali incollaggio e sigillatura, le indagini pre e post intervento; tutti i sussidi necessari per l'esecuzione dei lavori ricadenti all'interno dei costi della sicurezza indiretti."}]
[]
[]
[]
[]
[]
["DESCRIZIONE",null,null,"U.M.","QUANTITA'","PREZZO UNITARIO*","PREZZO COMPLETO"]
["RISORSE UMANE (RU) "]
["Applicazione dell'elemento di fissaggio",null,null,null,null,null,null,null,"OPERAIO QUALIFICATO (MO1003)",null,null,{"$f":"INDEX(lavorazioni_secondostrato,(VLOOKUP($B$1,lavorazioni_secondostrato,2,FALSE)+1),3)","v":{"$error":"#NAME?"}}]
[{"$f":"IF(A16=0,\"\",$I$16)","v":"OPERAIO QUALIFICATO (MO1003)"},null,null,"H/cad",7.0000000000000007E-2,{"$f":"IFERROR(VLOOKUP(A17,Tabella1[],3,FALSE),\"\")","v":29.25},{"$f":"IFERROR(E17*F17,\"\")","v":2.0475000000000003},null,null,null,null,{"$f":"IF(L16=0,\"\",$I$16)","v":{"$error":"#NAME?"}},null,null,{"$f":"IFERROR(VLOOKUP(L17,prezzi,2,FALSE),\"\")","v":""},{"$f":"IF(L17=$I$16,VLOOKUP(L16,#REF!,2,FALSE),IF(L17=$I$17,VLOOKUP(L15,#REF!,2,FALSE),\"\"))","v":{"$error":"#NAME?"}},{"$f":"IFERROR(VLOOKUP(L17,prezzi,3,FALSE),\"\")","v":""},{"$f":"IFERROR(P17*Q17,\"\")","v":""}]
[null,null,null,{"$f":"IFERROR(VLOOKUP(A18,prezzi,2,FALSE),\"\")","v":""},{"$f":"IF(A18=$I$16,VLOOKUP(#REF!,QTA,2,FALSE),\"\")","v":""},"sommano RU",{"$f":"SUM(G17:G17)","v":2.0475000000000003},null,null,null,null,null,null,null,"",{"$f":"IF(L18=$I$16,VLOOKUP(#REF!,#REF!,2,FALSE),IF(L18=$I$17,VLOOKUP(#REF!,#REF!,2,FALSE),\"\"))","v":{"$error":"#REF!"}},"sommano RU",{"$f":"SUM(R17:R17)","v":0}]
["PRODOTTI DA COSTRUZIONE (PR) ",null,null,{"$f":"IFERROR(VLOOKUP(A19,prezzi,2,FALSE),\"\")","v":""}]
[{"$f":"A6","v":"Elemento per Fissaggio Leggero"},{"$f":"B6","v":"50 mm"},null,"cad",1,{"$f":"IFERROR(VLOOKUP(B20,Tabella1[],3,FALSE),\"\")","v":1.008},{"$f":" IFERROR(F20*E20,\"\")","v":1.008}]
[null,null,null,"",null,"sommano PR",{"$f":"SUM(G20:G20)","v":1.008}]
["ATTREZZATURE (AT) "]
["NOLO DI STRUMENTAZIONE DA CANTIERE",null,null,"H/cad",0.01,8,{"$f":" F23*E23","v":0.08}]
["TRASPORTO MATERIALI DI CONSUMO",null,null,"kg/cad",0.05,{"$f":"0.02","v":0.02},{"$f":" F24*E24","v":1E-3}]
[null,null,null,null,null,"sommano AT",{"$f":"SUM(G23:G24)","v":8.1000000000000003E-2}]
[null,null,null,null,null,"Costo Tecnico (CT)",{"$f":"SUM(G25,G21,G18)","v":3.1365000000000003}]
[null,null,null,null,null,"Costo indiretto (SG) 17,00%",{"$f":"G26*0.17","v":0.53320500000000004}]
[null,null,null,null,null,"Costo figurativo (U) 10,00%",{"$f":"(G26+G27)*0.1","v":0.36697050000000009}]
["* Prezzi materiali Kerakoll = Listino 07-2025. Prezzi manodopera = Prezziario DEI (I Semestre 2025) - Media Nazionale."]
[null,"RU+PR+AT+SG+U",null," PREZZO COMPLESSIVO CADAUNO",null,null,{"$f":"G26+G27+G28","v":4.0366755000000003}]
[]
["Voce di capitolato "]
[{"$f":"_xlfn.CONCAT(Voce!B3,VLOOKUP('Elementi di fissaggio'!A6,VOC,3,FALSE),VLOOKUP('Elementi di fissaggio'!A6,VOC,4,FALSE),VLOOKUP('Elementi di fissaggio'!A6,VOC,6,FALSE))","v":"Fornitura e posa in opera di elemento in polipropilene per fissaggio di carichi leggeri al cappotto senza formazione di ponte termico - tipo Elemento di Fissaggio Leggero di Kerakoll. \nL'intervento si svolge nelle seguenti fasi: \na) Avvitare l'elemento di fissaggio al cappotto mediante avvitatore senza realizzare preforo. \nLa valutazione è espressa per singolo elemento di fissaggio effettivamente posto in opera"}]

{"sheet":"Voce","index":1,"n_rows":7,"n_cols":6,"rows_kept":7,"cut":false,"hidden":true,"merged":[]}
[]
[]
["Elemento per Fissaggio Leggero","Fornitura e posa in opera di ","elemento in polipropilene per fissaggio di carichi leggeri al cappotto senza formazione di ponte termico ","- tipo Elemento di Fissaggio Leggero di Kerakoll. ","\nIl prezzo è per singolo elemento posto in opera. E' altresì compresa la fornitura e posa in opera di tutti i materiali sopra descritti e quanto altro occorre per dare il lavoro finito. Sono esclusi: eventuali materiali incollaggio e sigillatura, le indagini pre e post intervento; tutti i sussidi necessari per l'esecuzione dei lavori ricadenti all'interno dei costi della sicurezza indiretti.","\nL'intervento si svolge nelle seguenti fasi: \na) Avvitare l'elemento di fissaggio al cappotto mediante avvitatore senza realizzare preforo. \nLa valutazione è espressa per singolo elemento di fissaggio effettivamente posto in opera"]
["Elemento per Fissaggio Medio",null,"elemento per fissaggio di carichi medi al cappotto realizzato mediante vite in acciaio e cono in plastica rinforzata con fibra di vetro ","- tipo Elemento di Fissaggio Medio di Kerakoll. ",null,"\nL'intervento si svolge nelle seguenti fasi: \na) Realizzare un foro della lunghezza corretta all'interno del supporto\nb) Inserire l'Elemento di Fissaggio per Carichi Medi all'interno del foro realizzato senza il tassello\nc) Rimuovere l'Elemento di Fissaggio dal foro e procedere alla pulizia\nd) Applicare il tassello in plastica grigio sulla punta del chiodo e inserire all'interno del foro realizzato\ne) Avvitare finchè il cono in plastica non risulti a filo con la superficie del cappotto \nf) Applicare sulla testa dell'Elemento di Fissaggio apposito sigillante silanico neutro\nLa valutazione è espressa per singolo elemento di fissaggio effettivamente posto in opera.\n"]
["Elemento per Fissaggio Pesante",null,"elemento per fissaggio di carichi pesanti al cappotto realizzato mediante vite in acciaio e cono in plastica rinforzata con fibra di vetro ","- tipo Elemento di Fissaggio Pesante di Kerakoll. ",null,"\nL'intervento si svolge nelle seguenti fasi: \na) Realizzare un foro della lunghezza e diametro corretti all'interno del supporto. In caso di supporti forati utilizzare l'apposita calza (da computarsi separatamente) \nb) Avvitare l'Elemento di Fissaggio Pesante. In caso di utilizzo della calza, procedere all'inserimento dell'ancorante chimico e successivamente dell'Elemento di Fissaggio Pesante\nc) Applicare sulla testa dell'Elemento di Fissaggio apposito sigillante silanico neutro\nLa valutazione è espressa per singolo elemento di fissaggio effettivamente posto in opera.\n"]
["Supporto per Fissaggio Medio ",null,"supporto per fissaggio di carichi medi al cappotto, senza formazione di ponte termico in eps ad alta densità con passo evidenziato ogni 20 mm","- tipo Supporto per Fissaggio Medio di Kerakoll.",null,"L'intervento si svolge nelle seguenti fasi: \na) Realizzare il taglio nei pannelli termocoibenti prima dell'applicazione\nb) Inserimento dell'elemento all'interno dell'incavo creato incollandolo mediante adesivo da cappotto\nc) Procedere alla rasatura armata, fondo e intonachino in uniformità con il sistema a cappotto posato\nLa valutazione è espressa per singolo elemento di supporto effettivamente posto in opera."]
["Supporto per Serramenti",null,"supporto rigido imputrescibile senza CFC rinforzato con due piastre d'alluminio specifico per fissaggio di serramenti","- tipo Supporto per Serramenti di Kerakoll.",null,"L'intervento si svolge nelle seguenti fasi: \na) Realizzare la nicchia nei pannelli termocoibenti prima dell'applicazione\nb) avvitare l'elemento al supporto nel corretto posizionamento mediante le apposite viti\nc) Procedere all'incollaggio sopra l'elemento del pannello termocoibente e proseguire nella posa dei pannelli\nLa valutazione è espressa per singolo elemento di supporto effettivamente posto in opera."]

{"sheet":"Unità misura e prezzi","index":2,"n_rows":34,"n_cols":5,"rows_kept":34,"cut":false,"hidden":true,"merged":[[3,1,4,1],[5,1,14,1],[15,1,16,1]]}
[]
[null,null,"Prodotto ","UM","Prezzo"]
[null,null,"OPERAIO QUALIFICATO (MO1003)","H/mq",29.25]
[null,"Elemento per Fissaggio Leggero","50 mm","cad",1.008]
[null,null,"90 mm","cad",1.514]
[null,"Elemento per Fissaggio Medio","8/60 (M6)","cad",6.2439999999999998]
[null,null,"8/80 (M6)","cad",6.3380000000000001]
[null,null,"10/100 (M6)","cad",7.2960000000000003]
[null,null,"10/120 (M6)","cad",7.7039999999999997]
[null,null,"10/140 (M6)","cad",7.84]
[null,null,"10/160 (M6)","cad",8.1159999999999997]
[null,null,"10/180 (M6)","cad",8.4339999999999993]
[null,null,"10/200 (M6)","cad",9.0280000000000005]
[null,null,"10/220 (M6)","cad",11.308]
[null,null,"10/240 (M6)","cad",12.944000000000001]
[null,"Elemento per Fissaggio Pesante","12/110 (M12)","cad",31.456]
[null,null,"16/170 (M12)","cad",34.19]
[null,"Supporto per Fissaggio Medio","100x100x1000 mm","cad",110.858]
[null,"Supporto per Serramenti","80x125x280 mm","cad",54.548999999999999]
[null,null,"100x125x280 mm","cad",54.45]
[null,null,"120x125x280 mm","cad",56.265000000000001]
[null,null,"140x125x280 mm","cad",58.08]
[null,null,"160x125x280 mm","cad",59.895000000000003]
[null,null,"180x125x280 mm","cad",61.71]
[null,null,"200x125x280 mm","cad",63.524999999999999]
[]
[]
[]
[null,"Elenco"]
[null,"Elemento per Fissaggio Leggero","LEG",{"$f":"VLOOKUP('Elementi di fissaggio'!A6,'Unità misura e prezzi'!B30:C34,2,FALSE)","v":"LEG"}]
[null,"Elemento per Fissaggio Medio","MED"]
[null,"Elemento per Fissaggio Pesante","PES"]
[null,"Supporto per Fissaggio Medio ","SU_1"]
[null,"Supporto per Serramenti","SU_2"]